bitfinex-derivatives/quotes_ETHF0:USTF0_20250110
["timestamp","ask_amount","ask_price","bid_price","bid_amount"]
[1736537317195,0.30334,3296.9,3296.8,0.30333]
[1736537317394,0.30332,3297.1,3297.0,0.30331]
[1736537317594,0.30333,3296.9,3296.8,0.30333]
[1736537318392,0.4557,3297.2,3296.5,40.8]
[1736537318596,0.4557,3297.2,3296.6,0.30335]
[1736537318597,0.30335,3296.7,3296.6,0.30335]
[1736537319897,1.21397,3297.2,3296.5,40.8]
[1736537320098,0.30335,3296.6,3296.5,41.10336]
[1736537320292,0.30335,3296.6,3296.5,40.8]
[1736537320497,0.30341,3296.1,3296.0,0.3034]
[1736537320898,0.30341,3296.1,3296.0,41.1034]
[1736537321501,0.30341,3296.1,3296.0,40.8]
[1736537321802,0.30341,3296.1,3296.0,41.10341]
[1736537322201,0.30341,3296.1,3296.0,40.8]
[1736537323097,0.30341,3296.1,3296.0,41.10341]
[1736537323502,0.30341,3296.1,3296.0,40.8]
[1736537324502,0.75844,3296.4,3295.9,0.31574]
[1736537324699,0.30341,3296.0,3295.9,0.31574]
[1736537325002,0.30341,3296.0,3295.9,0.01233]
[1736537325196,0.3035,3295.1,3295.0,0.30349]
[1736537325402,2.5453767,3295.2,3294.6,3.2078]
[1736537325701,0.30351,3295.0,3294.9,0.3035]
[1736537325899,0.30349,3295.1,3295.0,0.30349]
[1736537326106,0.30349,3295.1,3294.6,3.2078]
[1736537326107,3.2078,3295.5,3295.4,0.30346]
[1736537326301,0.30345,3295.5,3295.4,0.30346]
[1736537327504,0.30347,3295.3,3295.2,40.8]
[1736537328507,0.30347,3295.3,3295.2,0.30348]
[1736537328708,0.30349,3295.2,3295.1,0.30349]
[1736537329004,0.30349,3295.2,3295.1,41.10349]
[1736537331403,0.30348,3295.3,3295.2,0.30347]
[1736537332206,0.30348,3295.2,3295.1,41.10348]
[1736537333199,0.30348,3295.2,3295.1,40.8]
[1736537333597,3.2078,3295.5,3294.9,0.30351]
[1736537333912,0.3035,3295.0,3294.9,0.30351]
[1736537334103,0.3035,3295.1,3295.0,0.30349]
[1736537335704,0.3035,3295.0,3294.9,41.1035]
[1736537336010,3.2078,3295.5,3295.0,0.30349]
[1736537336011,0.30349,3295.1,3295.0,0.30349]
[1736537336711,0.30349,3295.2,3295.1,0.30348]
[1736537339209,0.30349,3295.2,3294.9,40.8]
[1736537339210,0.3035,3295.0,3294.9,41.10349]
[1736537339604,0.75867,3295.4,3294.9,40.8]
[1736537339800,5.31055042,3295.5,3294.9,40.8]
[1736537340109,0.3035,3295.1,3295.0,0.3035]
[1736537340410,0.3035,3295.0,3294.9,41.1035]
[1736537341013,5.31055042,3295.5,3294.9,40.8]
[1736537341210,5.31055042,3295.5,3295.0,0.30349]
[1736537341211,0.3035,3295.1,3295.0,0.30349]
[1736537341409,3.2078,3295.5,3295.0,3.96656]
[1736537341717,5.037,3296.6,3296.3,0.30338]
[1736537341718,3.2078,3296.4,3296.3,0.30338]
[1736537342005,3.2078,3296.4,3295.4,5.31055042]
[1736537342006,3.2078,3296.4,3295.8,0.75855]
[1736537342211,0.30339,3296.3,3296.2,0.30338]
[1736537342615,3.2078,3296.4,3296.0,0.3034]
[1736537342616,0.30341,3296.1,3296.0,0.3034]
[1736537342814,3.96625,3296.4,3295.9,40.8]
[1736537342815,0.30341,3296.0,3295.9,40.8]
[1736537343006,0.73841,3296.0,3295.9,40.8]
[1736537343206,0.30344,3295.8,3295.7,0.30343]
[1736537343510,3.6428,3296.0,3295.5,0.4668]
[1736537343715,0.30344,3295.7,3295.6,40.8]
[1736537343920,0.30344,3295.7,3295.6,0.30344]
[1736537344411,0.30346,3295.5,3295.4,0.30345]
[1736537344607,0.30345,3295.6,3295.5,0.30344]
[1736537345207,0.30346,3295.5,3295.4,0.30346]
[1736537345809,0.30345,3295.6,3295.5,0.30344]
[1736537346202,0.4431,3295.8,3295.1,0.4357]
[1736537346417,0.30348,3295.3,3295.2,0.30347]
[1736537346715,0.30349,3295.2,3295.1,0.30348]
[1736537347313,5.75487882,3295.6,3294.9,40.8]
[1736537347511,0.3035,3295.0,3294.9,40.8]
[1736537347715,0.3035,3295.0,3294.8,0.30351]
[1736537347716,0.75864,3295.5,3294.8,0.30351]
[1736537347908,6.97558882,3295.2,3294.5,3.666]
[1736537348106,0.30354,3294.6,3294.5,3.51134]
[1736537348308,0.30354,3294.6,3294.5,44.31134]
[1736537348912,0.9192,3295.1,3294.5,44.31134]
[1736537348913,0.9192,3295.1,3294.5,44.0078]
[1736537349111,0.30353,3294.7,3294.6,0.30352]
[1736537350419,1.67795,3295.1,3294.5,40.8]
[1736537350716,0.30353,3294.8,3294.7,0.30352]
[1736537351022,0.30351,3295.0,3294.9,0.3035]
[1736537351316,3.2078,3296.1,3294.8,2.54707882]
[1736537351519,1.20832,3296.0,3295.9,0.30342]
[1736537351714,0.9049,3296.0,3295.4,0.4526]
[1736537351914,0.30344,3295.8,3295.7,0.30343]
[1736537352520,0.9049,3296.0,3295.4,0.4526]
[1736537352823,0.30344,3295.6,3295.5,40.8]
[1736537353026,0.3035,3295.1,3295.0,0.30349]
[1736537353322,0.30351,3295.0,3294.9,0.3035]
[1736537354620,0.30349,3295.2,3295.1,0.30348]
[1736537354815,0.30349,3295.2,3294.8,3.2078]
[1736537354816,4.5228,3295.7,3294.9,0.75876]
[1736537355016,0.30346,3295.5,3295.4,0.30345]
[1736537355212,3.6705,3295.7,3295.1,0.75873]
[1736537355416,3.97394,3295.7,3295.6,0.30344]
[1736537355616,3.6705,3295.7,3295.4,40.8]
[1736537355813,0.30345,3295.5,3295.4,41.10346]
[1736537357126,0.30348,3295.3,3295.2,0.30347]
[1736537357621,0.30348,3295.3,3294.8,3.96659]
[1736537357622,0.3035,3295.2,3295.1,0.30349]
[1736537360023,0.30348,3295.3,3295.2,0.30347]
[1736537360831,4.42911,3295.7,3295.1,0.30348]
[1736537360832,0.30349,3295.2,3295.1,0.30348]
[1736537361328,0.75871,3295.2,3294.2,3.6409]
[1736537361631,0.75871,3295.2,3294.5,0.30354]
[1736537361632,0.30355,3294.6,3294.5,0.30354]
[1736537363122,0.30353,3294.8,3294.7,0.30352]
[1736537363925,0.4426,3294.9,3294.2,3.6662]
[1736537364135,0.30352,3294.8,3294.7,0.30353]
[1736537364630,0.30355,3294.6,3294.5,0.30354]
[1736537364826,0.30353,3294.7,3294.6,0.30352]
[1736537367721,0.4426,3294.9,3294.3,0.75891]
[1736537367925,2.207,3295.1,3294.2,3.6662]
[1736537367926,0.30351,3295.0,3294.9,0.3035]
[1736537368223,0.30351,3295.0,3294.2,3.6662]
[1736537368224,2.6485,3295.1,3294.2,3.6662]
[1736537368425,0.30354,3294.7,3294.6,0.30352]
[1736537368631,0.30352,3294.9,3294.8,0.30351]
[1736537369134,0.30352,3294.9,3294.8,41.10351]
[1736537369930,0.30352,3294.9,3294.8,40.8]
[1736537370130,0.30352,3294.9,3294.8,41.10352]
[1736537370926,2.6485,3295.1,3294.3,0.75891]
[1736537371124,3.40725,3295.1,3294.3,0.75891]
[1736537371326,0.30355,3294.6,3294.5,0.30353]
[1736537371733,0.30355,3294.5,3294.4,41.10355]
[1736537371930,0.30355,3294.5,3294.4,40.8]
[1736537372126,0.30356,3294.5,3294.4,0.30354]
[1736537373525,0.30356,3294.4,3294.3,41.10356]
[1736537373728,0.30356,3294.4,3294.3,40.8]
[1736537373932,0.30359,3294.1,3294.0,0.30358]
[1736537374328,0.3036,3294.0,3293.9,0.3036]
[1736537379950,1.7859,3294.3,3293.8,40.8]
[1736537380247,2.08947,3294.3,3294.2,0.30357]
[1736537381244,0.3036,3294.1,3294.0,0.30358]
[1736537381654,0.3036,3293.9,3293.8,41.1036]
[1736537381948,0.30361,3293.8,3293.7,3.51142]
[1736537382150,0.4652,3293.8,3293.3,0.4541]
[1736537382348,0.30365,3293.5,3293.4,41.10363]
[1736537383055,0.30363,3293.7,3293.6,0.30362]
[1736537384345,0.30363,3293.7,3293.4,40.8]
[1736537384346,0.30359,3294.1,3294.0,0.30358]
[1736537384552,0.30362,3293.8,3293.7,0.30361]
[1736537388252,3.2078,3294.0,3293.6,40.8]
[1736537388452,0.30362,3293.7,3293.6,40.8]
[1736537388750,0.30362,3293.7,3293.6,41.10363]
[1736537389254,0.30362,3293.7,3293.6,0.30363]
[1736537389552,0.30365,3293.5,3293.4,41.10363]
[1736537391348,0.30365,3293.5,3293.4,41.10365]
[1736537391647,0.30365,3293.5,3293.4,40.8]
[1736537391854,3.51145,3293.5,3293.4,40.8]
[1736537392150,0.3037,3292.8,3292.7,3.2078]
[1736537392357,0.30372,3292.7,3292.6,0.30372]
[1736537392558,0.30372,3292.7,3292.6,41.10372]
[1736537393252,0.4687,3292.9,3292.7,0.3037]
[1736537393253,0.3037,3292.8,3292.7,0.3037]
[1736537393458,0.7724,3292.9,3292.8,0.3037]
[1736537395258,0.30371,3292.8,3292.7,0.30371]
[1736537395557,0.30371,3292.7,3292.6,41.10372]
[1736537396559,0.30371,3292.8,3292.7,0.3037]
[1736537396756,0.30371,3292.7,3292.6,40.8]
[1736537396957,0.30371,3292.7,3292.6,41.10372]
[1736537398057,0.30371,3292.7,3292.6,40.8]
[1736537398260,0.30371,3292.7,3292.6,41.10372]
[1736537398559,0.30371,3292.7,3292.6,40.8]
[1736537398761,0.30375,3292.4,3292.3,0.30374]
[1736537398956,0.4687,3292.9,3292.2,0.4338]
[1736537399158,0.30374,3292.5,3292.4,0.30373]
[1736537400053,0.4687,3292.9,3292.5,0.30372]
[1736537400054,0.30373,3292.6,3292.5,0.30372]
[1736537400261,0.4598,3293.4,3292.5,5.31179707]
[1736537400471,3.2078,3293.5,3292.5,5.31179707]
[1736537400472,3.51145,3293.5,3293.4,0.30365]
[1736537400667,3.2078,3293.5,3293.4,0.30365]
[1736537400861,1.315,3294.0,3293.3,0.75913]
[1736537401163,0.9343,3294.1,3293.4,46.11179707]
[1736537401365,0.4803,3294.1,3294.0,0.30359]
[1736537401565,3.2078,3294.3,3294.2,0.30357]
[1736537401566,3.51137,3294.3,3294.2,0.30357]
[1736537401859,0.30358,3294.2,3294.1,0.30358]
[1736537402065,0.4704,3294.5,3293.8,0.4285]
[1736537402264,0.3036,3293.9,3293.8,0.30361]
[1736537402463,0.3036,3294.0,3293.9,0.30359]
[1736537402664,3.33328707,3294.5,3293.7,0.4738]
[1736537402968,0.4704,3294.5,3293.8,0.75903]
[1736537403167,0.30358,3294.2,3294.1,0.30357]
[1736537404161,0.30357,3294.3,3294.2,0.30356]
[1736537405162,0.4704,3294.5,3293.9,0.4285]
[1736537405366,0.77396,3294.5,3294.4,0.30356]
[1736537406166,0.30356,3294.4,3294.3,0.30356]
[1736537406359,0.30356,3294.4,3293.8,3.96683]
[1736537406360,3.01976579,3294.5,3293.7,3.6816]
[1736537406763,0.30363,3293.6,3293.5,0.30363]
[1736537407064,0.75898,3294.1,3293.2,0.30366]
[1736537407065,0.30365,3293.4,3293.2,0.30366]
[1736537407264,0.3037,3292.8,3292.7,3.2078]
[1736537407467,0.30371,3292.7,3292.6,0.78281]
[1736537407661,1e-05,3292.7,3292.6,0.78281]
[1736537407861,1e-05,3292.7,3292.6,0.4791]
[1736537408069,1e-05,3292.7,3292.2,3.6682]
[1736537408266,0.30373,3292.7,3292.6,0.30372]
[1736537408863,1e-05,3292.7,3292.2,3.2078]
[1736537409069,0.30377,3292.1,3292.0,0.30377]
[1736537409264,0.30379,3291.9,3291.8,3.51159]
[1736537409572,0.30378,3292.0,3291.9,0.30378]
[1736537409963,0.30379,3291.8,3291.7,0.4791]
[1736537410160,3.2078,3292.1,3291.6,40.8]
[1736537410365,5.75716579,3292.1,3291.2,0.4459]
[1736537410569,0.30378,3292.0,3291.8,0.30379]
[1736537410763,0.75936,3292.4,3291.9,40.8]
[1736537410764,0.30376,3292.2,3291.9,40.8]
[1736537410965,1.314,3292.4,3292.1,0.30377]
[1736537411274,0.30375,3292.3,3292.2,0.30376]
[1736537411572,1.314,3292.4,3291.9,40.8]
[1736537411769,1.314,3292.4,3292.2,0.30376]
[1736537411770,0.30375,3292.3,3292.2,0.30376]
[1736537411965,1.314,3292.4,3292.2,0.30376]
[1736537411966,1.61775,3292.4,3292.2,0.30376]
[1736537412273,0.30374,3292.5,3292.0,0.30378]
[1736537412475,0.30374,3292.5,3292.4,0.30374]
[1736537412771,0.30374,3292.4,3292.3,0.30375]
[1736537413465,0.4665,3292.6,3292.3,0.30375]
[1736537413763,0.30377,3292.1,3292.0,0.30378]
[1736537413965,0.4665,3292.6,3292.1,0.30376]
[1736537413966,0.30376,3292.3,3292.1,0.30376]
[1736537414162,3.2078,3292.5,3292.4,0.30374]
[1736537414471,1e-05,3292.7,3292.6,0.30372]
[1736537414769,0.30372,3292.7,3292.6,0.30372]
[1736537414964,0.30372,3292.6,3292.0,0.4341]
[1736537415170,3.2078,3292.5,3291.9,3.2078]
[1736537415367,0.30379,3291.9,3291.8,0.30379]
[1736537415567,0.30379,3291.9,3291.8,40.8]
[1736537416671,0.30382,3291.5,3291.4,0.30383]
[1736537417172,0.30382,3291.6,3291.5,0.30382]
[1736537417574,0.30382,3291.6,3291.4,41.10383]
[1736537418374,0.30382,3291.5,3291.4,41.10383]
[1736537418867,0.30382,3291.6,3291.4,40.8]
[1736537419062,0.30382,3291.6,3291.5,0.30382]
[1736537419469,0.4662,3291.8,3291.4,40.8]
[1736537419673,0.30382,3291.5,3291.4,40.8]
[1736537420075,0.30382,3291.5,3291.4,41.10383]
[1736537420266,0.30381,3291.6,3291.5,0.30382]
[1736537420472,0.30381,3291.7,3291.6,0.30381]
[1736537421174,3.6528,3292.1,3291.4,44.0078]
[1736537421878,0.30382,3291.5,3291.4,44.31163]
[1736537422171,0.30382,3291.5,3291.4,41.10383]
[1736537422378,0.30382,3291.6,3291.5,0.30382]
[1736537423669,0.75945,3292.0,3291.4,40.8]
[1736537423670,0.30382,3291.5,3291.4,40.8]
[1736537423869,4.5218,3291.7,3291.0,3.6404]
[1736537424071,0.4745,3291.4,3291.0,0.4326]
[1736537424271,0.30386,3291.2,3291.1,0.30385]
[1736537424481,0.30386,3291.2,3291.1,41.10385]
[1736537424776,0.4745,3291.4,3290.8,0.30388]
[1736537424777,0.30389,3290.9,3290.8,0.30388]
[1736537424979,0.30387,3291.1,3291.0,0.30387]
[1736537427575,0.4745,3291.4,3290.9,0.7597]
[1736537427775,0.30382,3291.6,3291.0,3.96748]
[1736537427975,0.30384,3291.4,3291.3,0.30383]
[1736537428177,0.9474,3291.8,3291.0,3.2078]
[1736537428376,0.30382,3291.6,3291.5,0.30381]
[1736537428580,0.9474,3291.8,3291.0,3.2078]
[1736537428781,0.30385,3291.4,3291.3,0.30384]
[1736537429182,0.30385,3291.4,3291.3,41.10384]
[1736537430487,0.30385,3291.4,3291.3,40.8]
[1736537430678,0.30385,3291.4,3291.3,41.10384]
[1736537431276,0.9474,3291.8,3291.5,0.30382]
[1736537431580,0.30381,3291.7,3291.6,0.30381]
[1736537431883,1.2512,3291.8,3291.7,0.3038]
[1736537432081,0.7769,3291.8,3291.7,0.3038]
[1736537432283,0.30381,3291.7,3291.6,0.30381]
[1736537432879,0.7769,3291.8,3291.7,0.3038]
[1736537433282,0.4731,3291.8,3291.5,0.4605]
[1736537433481,0.30381,3291.6,3291.5,0.76431]
[1736537434382,0.4731,3291.8,3291.5,0.4605]
[1736537434587,0.30381,3291.7,3291.6,0.3038]
[1736537435681,0.4731,3291.8,3291.4,3.2078]
[1736537435886,0.30383,3291.4,3291.3,40.8]
[1736537436076,2.10684726,3291.7,3291.0,3.2078]
[1736537436282,0.30386,3291.1,3291.0,3.2078]
[1736537437590,1.314,3291.3,3291.2,0.30385]
[1736537437784,1.61784,3291.3,3291.2,0.30385]
[1736537438588,0.30386,3291.2,3291.1,0.30385]
[1736537439299,0.30386,3291.1,3291.0,3.51167]
[1736537439482,0.30389,3290.8,3290.7,41.10389]
[1736537439678,0.9104,3291.0,3290.2,3.2078]
[1736537439892,0.9104,3291.0,3290.4,0.30392]
[1736537439893,0.30392,3290.5,3290.4,0.30392]
[1736537440087,0.30391,3290.6,3290.5,0.3039]
[1736537440284,0.30391,3290.6,3290.5,41.1039]
[1736537440689,0.30393,3290.4,3290.3,0.30392]
[1736537440991,0.30392,3290.6,3290.5,0.30391]
[1736537441291,1.21428,3291.0,3290.9,0.30388]
[1736537441589,0.3039,3290.8,3290.7,0.30389]
[1736537442790,0.30391,3290.7,3290.6,0.3039]
[1736537444389,0.30391,3290.6,3290.5,41.10391]
[1736537445494,0.9104,3291.0,3290.7,0.30388]
[1736537445495,0.3039,3290.8,3290.7,0.30388]
[1736537446587,0.30391,3290.6,3290.5,41.10391]
[1736537448001,3.2078,3290.7,3290.2,3.2078]
[1736537448189,0.30393,3290.4,3290.3,0.30392]
[1736537448792,3.5117,3290.7,3290.6,0.30391]
[1736537448997,3.2078,3290.7,3290.6,0.30391]
[1736537449189,3.5117,3290.7,3290.6,0.30391]
[1736537449591,3.2078,3290.7,3290.6,0.30391]
[1736537450096,0.30389,3290.8,3290.7,0.3039]
[1736537451089,0.30391,3290.7,3290.6,0.3039]
[1736537451690,2.86657726,3290.8,3290.2,44.0078]
[1736537451890,0.30393,3290.3,3290.2,40.8]
[1736537452398,3.51173,3290.3,3290.2,40.8]
[1736537452691,0.30398,3290.0,3289.9,0.30397]
[1736537453091,0.30398,3290.0,3289.9,41.10397]
[1736537453290,0.4563,3290.2,3289.9,40.8]
[1736537453484,0.4563,3290.2,3290.1,0.30395]
[1736537453990,0.30391,3290.6,3290.5,0.30391]
[1736537454389,3.968,3290.7,3290.6,0.30391]
[1736537454698,3.6641,3290.7,3290.6,0.30391]
[1736537454892,3.968,3290.7,3290.6,0.30391]
[1736537456688,3.6641,3290.7,3290.6,0.30391]
[1736537456888,3.6641,3290.7,3290.6,0.30558314]
[1736537457092,3.2078,3290.7,3290.6,0.30558314]
[1736537457901,0.30385,3291.3,3291.2,0.30384]
[1736537458200,0.30379,3291.9,3291.8,0.30379]
[1736537458401,0.9336,3292.0,3291.9,0.30379]
[1736537458597,0.76278,3292.0,3291.9,0.30379]
[1736537458797,0.30379,3291.9,3291.8,0.30379]
[1736537459100,0.76279,3292.0,3291.9,0.30379]
[1736537459495,0.459,3292.0,3291.7,40.8]
[1736537460003,0.30379,3291.8,3291.7,40.8]
[1736537460602,0.30383,3291.5,3291.4,0.30382]
[1736537461596,3.2078,3291.9,3291.8,0.30379]
[1736537461797,0.459,3292.0,3291.9,0.30379]
[1736537462200,0.30381,3291.7,3291.3,0.30384]
[1736537462395,3.2078,3291.9,3291.0,40.8]
[1736537462603,0.30385,3291.3,3291.2,0.30384]
[1736537463113,0.75955,3291.6,3291.1,0.30385]
[1736537463314,0.30386,3291.2,3291.1,0.30385]
[1736537463705,3.2078,3291.5,3290.8,40.8]
[1736537463901,0.30387,3291.1,3291.0,0.30386]
[1736537464101,3.2078,3291.5,3290.7,3.637]
[1736537464102,0.30389,3290.8,3290.7,0.30389]
[1736537465111,0.3039,3290.7,3290.6,0.00167314]
[1736537465413,0.7592,3290.7,3290.6,0.30558314]
[1736537465603,0.4553,3290.7,3290.6,0.30558314]
[1736537465803,0.7592,3290.7,3290.6,0.00167314]
[1736537466006,0.7592,3290.7,3290.6,0.30558314]
[1736537466613,3.2078,3291.1,3290.6,0.00167314]
[1736537467009,0.3039,3290.7,3290.6,0.00167314]
[1736537468505,0.3039,3290.7,3290.6,0.30558314]
[1736537468712,0.3039,3290.7,3290.6,0.00167314]
[1736537468909,0.3039,3290.7,3289.9,0.4433]
[1736537468910,0.30396,3290.1,3289.8,3.2078]
[1736537469105,0.9191,3290.6,3289.8,3.2078]
[1736537469313,3.2078,3290.7,3290.6,0.30391]
[1736537469710,3.2078,3290.7,3290.3,0.8725]
[1736537470011,3.2078,3290.7,3290.6,0.30391]
[1736537470214,3.5117,3290.7,3290.6,0.30391]
[1736537470415,3.2078,3290.7,3290.6,0.30391]
[1736537470611,0.4422,3291.2,3290.6,3.51171]
[1736537470815,0.30386,3291.1,3291.0,0.30386]
[1736537471011,0.4422,3291.2,3290.6,3.51171]
[1736537471208,0.30387,3291.0,3290.9,0.30387]
[1736537471411,0.4422,3291.2,3291.0,0.30386]
[1736537471412,0.30387,3291.1,3291.0,0.30386]
[1736537471812,0.30387,3291.1,3290.6,3.2078]
[1736537471813,0.30387,3291.0,3290.9,0.30387]
[1736537472015,0.30387,3291.0,3290.9,41.10387]
[1736537472512,0.30389,3290.9,3290.8,0.30388]
[1736537472712,0.30389,3290.9,3290.3,1.63233]
[1736537472713,0.30392,3290.5,3290.4,0.30392]
[1736537473112,0.75966,3291.1,3290.3,0.4433]
[1736537473314,0.30392,3290.4,3290.3,0.74723]
[1736537473708,0.30393,3290.3,3290.2,3.2078]
[1736537473913,0.30393,3290.4,3290.3,0.30393]
[1736537474108,0.30393,3290.3,3290.2,3.51173]
[1736537474310,0.30397,3290.0,3289.8,0.9081]
[1736537474513,3.2078,3290.3,3289.5,3.2078]
[1736537474514,0.304,3289.6,3289.5,3.2078]
[1736537474712,0.30399,3289.7,3289.6,0.30399]
[1736537474906,0.30397,3289.9,3289.8,0.30397]
[1736537475815,0.8953,3290.2,3289.8,40.8]
[1736537476124,4.5208,3290.3,3289.8,40.8]
[1736537476424,4.82474,3290.3,3290.2,0.30394]
[1736537476614,4.82474,3290.3,3289.8,40.8]
[1736537476615,4.5208,3290.3,3289.8,40.8]
[1736537477317,3.2078,3290.7,3289.9,3.2078]
[1736537477612,0.30393,3290.4,3290.3,0.30393]
[1736537479014,0.30395,3290.1,3290.0,0.30395]
[1736537479219,0.30396,3290.1,3290.0,0.30395]
[1736537479522,3.2078,3290.7,3289.9,3.2078]
[1736537479719,0.30396,3290.0,3289.9,0.30396]
[1736537479920,0.4671,3290.4,3289.8,40.8]
[1736537480121,0.30396,3290.1,3290.0,0.30395]
[1736537480621,0.4671,3290.4,3289.8,40.8]
[1736537480812,0.30393,3290.5,3290.4,0.30391]
[1736537481418,0.30393,3290.5,3290.4,41.10391]
[1736537481617,0.30393,3290.5,3290.4,40.8]
[1736537481818,0.30393,3290.5,3290.4,41.10392]
[1736537482016,0.4727,3290.9,3290.4,40.8]
[1736537482316,3.2127645,3291.6,3291.1,0.30385]
[1736537482317,0.30386,3291.2,3291.1,0.30385]
[1736537483221,0.75075,3291.3,3291.2,0.30385]
[1736537483421,0.4469,3291.3,3291.2,0.30385]
[1736537483619,0.30383,3291.4,3291.3,0.30383]
[1736537483817,0.4669,3291.5,3291.4,0.30383]
[1736537484024,0.4701,3291.9,3291.2,0.75963]
[1736537484225,0.3038,3291.8,3291.7,0.3038]
[1736537484923,0.3038,3291.8,3291.3,0.4416]
[1736537484924,4.126,3292.3,3291.3,0.4416]
[1736537485221,0.30381,3291.7,3291.6,0.30381]
[1736537485427,0.75943,3292.1,3291.5,0.30382]
[1736537485428,0.30382,3291.6,3291.5,0.30382]
[1736537486021,0.30382,3291.6,3291.5,41.10382]
[1736537486320,0.30382,3291.6,3291.5,40.8]
[1736537486628,0.30383,3291.4,3291.3,0.30384]
[1736537487120,3.96729,3291.9,3291.1,44.4447]
[1736537487121,3.2078,3291.9,3291.1,44.4447]
[1736537487424,0.77668,3292.0,3291.9,0.30379]
[1736537488017,0.3038,3291.8,3291.7,0.3038]
[1736537488222,0.4729,3292.0,3291.5,3.2078]
[1736537488425,0.30381,3291.7,3291.6,0.30381]
[1736537488627,0.30383,3291.5,3291.4,0.30383]
[1736537488925,3.2078,3291.9,3291.1,44.4447]
[1736537489129,0.30379,3291.8,3291.7,0.3038]
[1736537489424,0.30382,3291.6,3291.5,0.30382]
[1736537489826,3.2078,3291.9,3291.1,44.4447]
[1736537490327,0.30381,3291.7,3291.6,0.30381]
[1736537490521,3.2078,3291.9,3291.2,0.75963]
[1736537490727,3.51159,3291.9,3291.8,0.30379]
[1736537491228,0.30379,3291.9,3291.8,0.30379]
[1736537491425,0.30374,3292.5,3292.4,0.30373]
[1736537491622,3.51153,3292.7,3292.6,0.30372]
[1736537492020,3.20781,3292.7,3292.6,0.30372]
[1736537492227,3.20781,3292.7,3292.2,40.8]
[1736537492424,0.30374,3292.5,3292.4,0.30374]
[1736537492728,3.20781,3292.7,3292.2,40.8]
[1736537492729,0.30375,3292.3,3292.2,40.8]
[1736537493023,0.30375,3292.3,3292.2,41.10376]
[1736537493221,3.20781,3292.7,3292.2,40.8]
[1736537493424,1e-05,3292.7,3292.6,0.30372]
[1736537494321,1e-05,3292.7,3292.5,3.2078]
[1736537494524,1e-05,3292.7,3292.4,0.30374]
[1736537494718,1e-05,3292.7,3292.2,40.8]
[1736537494919,1e-05,3292.7,3292.2,0.30375]
[1736537495125,0.30374,3292.4,3292.3,0.30374]
[1736537496028,0.30373,3292.7,3292.6,0.30372]
[1736537496230,0.30372,3292.7,3292.6,0.30372]
[1736537496726,0.30374,3292.4,3292.3,0.30374]
[1736537496931,1e-05,3292.7,3292.2,0.30375]
[1736537496932,0.30376,3292.3,3292.2,0.30375]
[1736537497229,0.30377,3292.1,3292.0,3.51158]
[1736537497628,0.9093,3292.2,3291.6,3.96732]
[1736537497932,1.21307,3292.2,3292.1,0.30377]
[1736537498129,0.30378,3292.1,3292.0,0.30377]
[1736537499226,0.9093,3292.2,3291.6,3.96732]
[1736537499427,1.21306,3292.2,3292.1,0.30377]
[1736537501333,3.2078,3292.5,3292.1,0.30377]
[1736537501532,3.51154,3292.5,3292.4,0.30374]
[1736537501728,0.30375,3292.4,3292.3,0.30374]
[1736537501934,3.51154,3292.5,3292.4,0.30374]
[1736537503031,0.30374,3292.4,3292.3,41.10374]
[1736537504226,3.2078,3292.5,3292.4,0.30374]
[1736537504227,3.51153,3292.5,3292.4,0.30374]
[1736537504431,3.2078,3292.5,3292.4,0.30374]
[1736537504644,1e-05,3292.7,3292.6,0.30372]
[1736537511442,1e-05,3292.7,3292.6,2.40849943]
[1736537512541,1e-05,3292.7,3292.6,2.76524396]
[1736537513234,1e-05,3292.7,3292.6,2.40849943]
[1736537514038,1e-05,3292.7,3292.6,0.30372]
[1736537514338,1e-05,3292.7,3292.4,0.30373]
[1736537514339,0.30374,3292.5,3292.4,0.30373]
[1736537514741,0.4766,3292.6,3292.3,40.8]
[1736537514941,0.30374,3292.5,3292.4,0.30374]
[1736537516544,0.4766,3292.6,3292.5,0.30373]
[1736537518843,0.78032,3292.6,3292.5,0.30373]
[1736537519540,0.30374,3292.4,3292.3,41.10373]
[1736537520540,0.30374,3292.4,3292.3,40.8]
[1736537520738,0.30374,3292.4,3292.3,41.10375]
[1736537520937,0.4766,3292.6,3292.2,0.30376]
[1736537521139,0.4766,3292.6,3291.6,0.75953]
[1736537521140,3.6821,3292.3,3291.6,3.2078]
[1736537521344,0.30378,3292.1,3292.0,0.30377]
[1736537521741,0.467,3292.2,3292.1,0.30377]
[1736537522337,0.4766,3292.6,3292.5,0.30373]
[1736537522741,0.4586,3293.0,3292.4,3.2078]
[1736537522742,1e-05,3292.7,3292.4,3.2078]
[1736537523047,1e-05,3292.7,3292.6,2.40849943]
[1736537523247,1e-05,3292.7,3292.6,2.76581917]
[1736537523544,1e-05,3292.7,3292.6,8.21511917]
[1736537523733,1e-05,3292.7,3292.6,49.37933682]
[1736537523938,1e-05,3292.7,3292.6,49.37931352]
[1736537524435,1e-05,3292.7,3292.6,49.01511917]
[1736537524641,1e-05,3292.7,3292.6,43.20849943]
[1736537525043,0.44811,3292.7,3292.6,43.20849943]
[1736537525649,0.75182,3292.7,3292.6,41.10372]
[1736537525853,1.18832,3292.7,3292.6,41.10372]
[1736537526047,0.88461,3292.7,3292.6,41.10372]
[1736537526348,1e-05,3292.7,3292.6,41.10372]